fUST/lending_fUST_20250531
["ID","MTS","AMOUNT","RATE_DAILY","PERIOD"]
[363269169,1748656039049,-999.62091595,0.00018303,5]
[363269170,1748656039074,-430.0,0.00018354,2]
[363269171,1748656039098,-430.0,0.00018354,2]
[363269172,1748656039129,-1627.51,0.00018354,2]
[363269173,1748656039154,-430.0,0.00018354,2]
[363269174,1748656039180,-430.0,0.00018354,2]
[363269175,1748656039207,-430.0,0.00018354,2]
[363269176,1748656039235,-608.15,0.00018354,2]
[363269177,1748656039269,-971.71,0.00018354,2]
[363269178,1748656039297,-432.24,0.00018354,2]
[363269179,1748656039326,-982.9,0.00018354,2]
[363269180,1748656039353,-430.0,0.00018354,2]
[363269181,1748656039379,-430.0,0.00018354,2]
[363269182,1748656039404,-1000.0,0.00018355,2]
[363269183,1748656039429,-430.0,0.00018356,2]
[363269184,1748656039455,-842.82,0.00018356,2]
[363269185,1748656039483,-1694.32,0.00018356,2]
[363269186,1748656039514,-1322.09,0.00018356,2]
[363269187,1748656039540,-814.34,0.00018356,2]
[363269188,1748656039564,-430.0,0.00018356,2]
[363269189,1748656039589,-393.95305174,0.00018356,2]
[363269190,1748656039615,-430.0,0.00018356,2]
[363269191,1748656039639,-2189.94,0.00018356,2]
[363269192,1748656039664,-430.0,0.00018356,2]
[363269193,1748656039688,-430.0,0.00018356,2]
[363269194,1748656039714,-1149.04,0.00018356,2]
[363269195,1748656039739,-644.15,0.00018356,2]
[363269196,1748656039771,-430.0,0.00018356,2]
[363269197,1748656039796,-430.0,0.00018356,2]
[363269198,1748656039823,-963.09,0.00018356,2]
[363269199,1748656039850,-900.48622455,0.00018356,2]
[363269200,1748656041034,-529.54,0.00016438,2]
[363269201,1748656041057,-612.2,0.00016438,2]
[363269202,1748656041079,-430.0,0.00016438,2]
[363269203,1748656041099,-440.89750212,0.00016438,2]
[363269204,1748656041122,-956.47,0.00016438,2]
[363269205,1748656041145,-430.0,0.0001671,2]
[363269206,1748656041167,-529.54,0.00016712,2]
[363269207,1748656041191,-612.2,0.00016712,2]
[363269208,1748656041212,-430.0,0.00016712,2]
[363269209,1748656041235,-430.0,0.00016984,2]
[363269210,1748656041260,-529.54,0.00016986,2]
[363269211,1748656041285,-612.2,0.00016986,2]
[363269212,1748656041307,-535.88654576,0.00016986,2]
[363269213,1748656041331,-430.0,0.00017258,2]
[363269214,1748656041353,-529.54,0.0001726,2]
[363269215,1748656041377,-612.2,0.0001726,2]
[363269216,1748656041397,-158.4280407,0.000173,2]
[363269217,1748656041420,-430.0,0.00017532,2]
[363269218,1748656041442,-529.54,0.00017534,2]
[363269219,1748656041464,-612.2,0.00017534,2]
[363269220,1748656041486,-430.0,0.00017806,2]
[363269221,1748656041650,-529.54,0.00017808,2]
[363269222,1748656041674,-612.2,0.00017808,2]
[363269223,1748656041696,-420.0,0.00017857,2]
[363269224,1748656041720,-430.0,0.0001808,2]
[363269225,1748656041746,-529.54,0.00018082,2]
[363269226,1748656041851,-612.2,0.00018082,2]
[363269227,1748656041906,-430.0,0.00018354,2]
[363269228,1748656041996,-612.92377545,0.00018356,2]
[363269229,1748656042088,-1857.4,0.00018356,2]
[363269230,1748656042112,-595.82,0.00018356,2]
[363269231,1748656042134,-716.67,0.00018356,2]
[363269232,1748656042155,-430.0,0.00018356,2]
[363269233,1748656042180,-430.0,0.00018356,2]
[363269234,1748656042201,-430.0,0.00018356,2]
[363269235,1748656042224,-1076.82,0.00018356,2]
[363269236,1748656042247,-960.05,0.00018356,2]
[363269237,1748656042272,-430.0,0.00018356,2]
[363269238,1748656042294,-430.0,0.00018356,2]
[363269239,1748656042316,-1172.9,0.00018356,2]
[363269240,1748656042338,-458.5012153,0.00018356,2]
[363269241,1748656042360,-1744.19,0.00018356,2]
[363269242,1748656042381,-1425.95,0.00018356,2]
[363269243,1748656042402,-529.54,0.00018356,2]
[363269244,1748656042424,-612.2,0.00018356,2]
[363269245,1748656042445,-157.5499743,0.00018356,2]
[363269246,1748656042465,-157.5499743,0.00018356,2]
[363269247,1748656042485,-157.5499743,0.00018356,2]
[363269248,1748656042505,-1000.0,0.00018382,2]
[363269249,1748656042537,-4235.81178689,0.00018383,2]
[363269250,1748656042557,-842.5625,0.00018398,3]
[363269251,1748656042578,-12663.11115519,0.00018398,3]
[363269252,1748656042599,-154330.78653285,0.00018399,2]
[363269253,1748656042619,-152.087997,0.00018399,2]
[363269254,1748656042640,-195.589229,0.00018399,2]
[363269255,1748656042661,-195.589229,0.00018399,2]
[363269256,1748656042682,-277.46876436,0.00018466,2]
[363269257,1748656042703,-511.46750223,0.00018471,2]
[363269258,1748656042723,-1000.0,0.000185,2]
[363269259,1748656042743,-411.14815125,0.00018521,2]
[363269260,1748656042804,-92.47328706,0.00018521,2]
[363269261,1748656042826,-1000.0,0.00018521,2]
[363269262,1748656042848,-1000.0,0.00018521,2]
[363269263,1748656042870,-526.43913799,0.00018531,2]
[363269264,1748656042893,-1006.76224122,0.00018531,2]
[363269265,1748656042915,-504.64620244,0.00018531,2]
[363269266,1748656042935,-151.0,0.00018533,2]
[363269267,1748656042958,-151.0,0.00018533,2]
[363269268,1748656042980,-5000.0,0.00018533,2]
[363269269,1748656043002,-157.5499743,0.00018603,2]
[363269270,1748656043028,-157.5499743,0.00018603,2]
[363269271,1748656043066,-157.5499743,0.00018603,2]
[363269272,1748656043131,-157.5499743,0.00018603,2]
[363269273,1748656043202,-4235.81178689,0.00018624,2]
[363269274,1748656043256,-430.0,0.00018628,2]
[363269275,1748656043350,-430.0,0.00018628,2]
[363269276,1748656043584,-1627.51,0.00018628,2]
[363269277,1748656043608,-430.0,0.00018628,2]
[363269278,1748656043632,-430.0,0.00018628,2]
[363269279,1748656043655,-430.0,0.00018628,2]
[363269280,1748656043677,-608.15,0.00018628,2]
[363269281,1748656043699,-971.71,0.00018628,2]
[363269282,1748656043721,-432.24,0.00018628,2]
[363269283,1748656043743,-982.9,0.00018628,2]
[363269284,1748656043767,-430.0,0.00018628,2]
[363269285,1748656043789,-430.0,0.00018628,2]
[363269286,1748656043813,-430.0,0.00018628,2]
[363269287,1748656043846,-1000.0,0.00018629,2]
[363269288,1748656043897,-430.0,0.0001863,2]
[363269289,1748656043948,-575.979099,0.0001863,2]
[363269290,1748656043999,-575.979099,0.0001863,2]
[363269291,1748656044117,-151.0,0.0001863,2]
[363269292,1748656044164,-2802.639793,0.0001863,2]
[363269293,1748656044187,-2802.639793,0.0001863,2]
[363269294,1748656044210,-151.0,0.0001863,2]
[363269295,1748656044234,-842.82,0.0001863,2]
[363269296,1748656044257,-151.0,0.0001863,2]
[363269297,1748656044284,-510.4,0.0001863,2]
[363269298,1748656044308,-430.0,0.0001863,2]
[363269299,1748656044334,-2189.94,0.0001863,2]
[363269300,1748656044359,-430.0,0.0001863,2]
[363269301,1748656044387,-430.0,0.0001863,2]
[363269302,1748656044414,-1149.04,0.0001863,2]
[363269303,1748656044438,-644.15,0.0001863,2]
[363269304,1748656044460,-547.06,0.0001863,2]
[363269305,1748656044482,-430.0,0.0001863,2]
[363269306,1748656044506,-963.09,0.0001863,2]
[363269307,1748656044534,-1513.41,0.0001863,2]
[363269308,1748656044558,-1857.4,0.0001863,2]
[363269309,1748656044582,-595.82,0.0001863,2]
[363269310,1748656044604,-716.67,0.0001863,2]
[363269311,1748656044626,-151.0,0.0001863,2]
[363269312,1748656044649,-151.0,0.0001863,2]
[363269313,1748656044670,-430.0,0.0001863,2]
[363269314,1748656044692,-430.0,0.0001863,2]
[363269315,1748656044714,-430.0,0.0001863,2]
[363269316,1748656044736,-1076.82,0.0001863,2]
[363269317,1748656044762,-960.05,0.0001863,2]
[363269318,1748656044784,-430.0,0.0001863,2]
[363269319,1748656044807,-430.0,0.0001863,2]
[363269320,1748656044829,-1172.9,0.0001863,2]
[363269321,1748656044851,-1744.19,0.0001863,2]
[363269322,1748656044874,-1425.95,0.0001863,2]
[363269323,1748656044897,-529.54,0.0001863,2]
[363269324,1748656044920,-612.2,0.0001863,2]
[363269325,1748656044942,-679.957,0.00018682,2]
[363269326,1748656044964,-173.14713067,0.00018682,2]
[363269327,1748656044985,-600.0,0.0001872,2]
[363269328,1748656045006,-10000.00135101,0.00018783,2]
[363269329,1748656045031,-157.5499743,0.00018822,2]
[363269330,1748656045052,-157.5499743,0.00018822,2]
[363269331,1748656045074,-702.5913295,0.00018849,2]
[363269332,1748656045096,-176.414694,0.00018849,2]
[363269333,1748656045117,-158.4280407,0.00018849,2]
[363269334,1748656045138,-829.1729851,0.00018849,2]
[363269335,1748656045159,-158.4280407,0.00018849,2]
[363269336,1748656045180,-158.4280407,0.00018849,2]
[363269337,1748656045201,-158.1849515,0.00018849,2]
[363269338,1748656045221,-1000.0,0.00018865,2]
[363269339,1748656045249,-4235.81178689,0.00018866,2]
[363269340,1748656045271,-962.0,0.00018867,2]
[363269341,1748656045291,-2228.0,0.00018867,2]
[363269342,1748656045310,-708.0,0.00018867,2]
[363269343,1748656045329,-405.0,0.00018867,2]
[363269344,1748656045350,-405.0,0.00018867,2]
[363269345,1748656045369,-5874.6351021,0.000189,2]
[363269346,1748656045389,-151.0,0.00018902,2]
[363269347,1748656045410,-151.0,0.00018902,2]
[363269348,1748656045431,-151.0,0.00018902,2]
[363269349,1748656045451,-1161.758364,0.00018902,2]
[363269350,1748656045472,-1161.758364,0.00018902,2]
[363269351,1748656045492,-151.0,0.00018902,2]
[363269352,1748656045515,-151.0,0.00018902,2]
[363269353,1748656045536,-1256.43873,0.00018902,2]
[363269354,1748656045556,-1256.43873,0.00018902,2]
[363269355,1748656045577,-430.0,0.00018902,2]
[363269356,1748656045597,-430.0,0.00018902,2]
[363269357,1748656045619,-1627.51,0.00018902,2]
[363269358,1748656045640,-430.0,0.00018902,2]
[363269359,1748656045661,-430.0,0.00018902,2]
[363269360,1748656045682,-430.0,0.00018902,2]
[363269361,1748656045705,-608.15,0.00018902,2]
[363269362,1748656045728,-971.71,0.00018902,2]
[363269363,1748656045919,-432.24,0.00018902,2]
[363269364,1748656045943,-982.9,0.00018902,2]
[363269365,1748656045968,-430.0,0.00018902,2]
[363269366,1748656045989,-430.0,0.00018902,2]
[363269367,1748656046015,-430.0,0.00018902,2]
[363269368,1748656046037,-1000.0,0.00018903,2]
[363269369,1748656046059,-1000.0,0.00018903,2]
[363269370,1748656046081,-1000.0,0.00018903,2]
[363269371,1748656046103,-1000.0,0.00018903,2]
[363269372,1748656046124,-599.39978271,0.00018903,2]
[363269373,1748656046147,-151.0,0.00018904,2]
[363269374,1748656046168,-151.0,0.00018904,2]
[363269375,1748656046189,-151.324582,0.00018904,2]
[363269376,1748656046210,-158.734746,0.00018904,2]
[363269377,1748656046231,-430.0,0.00018904,2]
[363269378,1748656046253,-842.82,0.00018904,2]
[363269379,1748656046278,-430.0,0.00018904,2]
[363269380,1748656046301,-2189.94,0.00018904,2]
[363269381,1748656046324,-430.0,0.00018904,2]
[363269382,1748656046348,-274.0507451,0.00018904,2]
[363269383,1748656046374,-1149.04,0.00018904,2]
[363269384,1748656046396,-644.15,0.00018904,2]
[363269385,1748656046418,-430.0,0.00018904,2]
[363269386,1748656046440,-963.09,0.00018904,2]
[363269387,1748656046463,-1513.41,0.00018904,2]
[363269388,1748656046489,-1857.4,0.00018904,2]
[363269389,1748656046514,-595.82,0.00018904,2]
[363269390,1748656046536,-716.67,0.00018904,2]
[363269391,1748656046558,-430.0,0.00018904,2]
[363269392,1748656046579,-519.07685124,0.00018904,2]
[363269393,1748656046601,-430.0,0.00018904,2]
[363269394,1748656046623,-1076.82,0.00018904,2]
[363269395,1748656046645,-960.05,0.00018904,2]
[363269396,1748656046666,-236.07410311,0.00018904,2]
[363269397,1748656046688,-430.0,0.00018904,2]
[363269398,1748656046710,-1172.9,0.00018904,2]
[363269399,1748656046733,-1744.19,0.00018904,2]
[363269400,1748656046755,-1425.95,0.00018904,2]
[363269401,1748656046780,-529.54,0.00018904,2]
[363269402,1748656046803,-612.2,0.00018904,2]
[363269403,1748656046823,-600.0,0.00018915,2]
[363269404,1748656046844,-3723.90066813,0.00019,2]
[363269405,1748656046865,-1000.0,0.00019,2]
[363269406,1748656046888,-500.0,0.00019,2]
[363269407,1748656046909,-157.5499743,0.00019068,2]
[363269408,1748656046929,-1500.0,0.00019068,2]
[363269409,1748656046952,-505.52707264,0.00019068,2]
[363269410,1748656046975,-5000.0,0.00019081,2]
[363269411,1748656047004,-4235.81178689,0.00019107,2]
[363269412,1748656047027,-600.0,0.0001911,2]
[363269413,1748656047049,-2477.468798,0.0001911,2]
[363269414,1748656047070,-8132.81582442,0.0001911,2]
[363269415,1748656047091,-1800.0,0.00019164,2]
[363269416,1748656047112,-7403.02330967,0.00019171,2]
[363269417,1748656047134,-430.0,0.00019176,2]
[363269418,1748656047157,-430.0,0.00019176,2]
[363269419,1748656047181,-1627.51,0.00019176,2]
[363269420,1748656047202,-430.0,0.00019176,2]
[363269421,1748656047225,-430.0,0.00019176,2]
[363269422,1748656047248,-430.0,0.00019176,2]
[363269423,1748656047276,-608.15,0.00019176,2]
[363269424,1748656047302,-971.71,0.00019176,2]
[363269425,1748656047325,-432.24,0.00019176,2]
[363269426,1748656047347,-982.9,0.00019176,2]
[363269427,1748656047369,-430.0,0.00019176,2]
[363269428,1748656047389,-437.11524837,0.00019176,2]
[363269429,1748656047412,-430.0,0.00019176,2]
[363269430,1748656047432,-160.0,0.00019177,2]
[363269431,1748656047455,-151.0,0.00019178,2]
[363269432,1748656047476,-151.0,0.00019178,2]
[363269433,1748656047498,-207.176094,0.00019178,2]
[363269434,1748656047522,-207.176094,0.00019178,2]
[363269435,1748656047543,-151.0,0.00019178,2]
[363269436,1748656047564,-165.841972,0.00019178,2]
[363269437,1748656047585,-488.56880373,0.00019178,2]
[363269438,1748656047607,-842.82,0.00019178,2]
[363269439,1748656047630,-430.0,0.00019178,2]
[363269440,1748656047652,-2189.94,0.00019178,2]
[363269441,1748656047674,-430.0,0.00019178,2]
[363269442,1748656047697,-1149.04,0.00019178,2]
[363269443,1748656047719,-644.15,0.00019178,2]
[363269444,1748656047741,-430.0,0.00019178,2]
[363269445,1748656047762,-963.09,0.00019178,2]
[363269446,1748656047787,-1513.41,0.00019178,2]
[363269447,1748656047810,-1857.4,0.00019178,2]
[363269448,1748656047831,-151.0,0.00019178,2]
[363269449,1748656047854,-595.82,0.00019178,2]
[363269450,1748656047879,-151.0,0.00019178,2]
[363269451,1748656047902,-716.67,0.00019178,2]
[363269452,1748656047925,-430.0,0.00019178,2]
[363269453,1748656047949,-430.0,0.00019178,2]
[363269454,1748656047972,-1076.82,0.00019178,2]
[363269455,1748656047994,-195.589229,0.00019178,2]
[363269456,1748656048021,-960.05,0.00019178,2]
[363269457,1748656048046,-195.589229,0.00019178,2]
[363269458,1748656048070,-430.0,0.00019178,2]
[363269459,1748656048095,-500.0,0.00019178,2]
[363269460,1748656048119,-500.0,0.00019178,2]
[363269461,1748656048145,-500.0,0.00019178,2]
[363269462,1748656048169,-500.0,0.00019178,2]
[363269463,1748656048193,-500.0,0.00019178,2]
[363269464,1748656048216,-500.0,0.00019178,2]
[363269465,1748656048239,-500.0,0.00019178,2]
[363269466,1748656048263,-500.0,0.00019178,2]
[363269467,1748656048292,-500.0,0.00019178,2]
[363269468,1748656048316,-500.0,0.00019178,2]
[363269469,1748656048339,-237.5030408,0.00019178,2]
[363269470,1748656048362,-500.0,0.00019178,2]
[363269471,1748656048385,-1172.9,0.00019178,2]
[363269472,1748656048407,-500.0,0.00019178,2]
[363269473,1748656048430,-500.0,0.00019178,2]
[363269474,1748656048452,-500.0,0.00019178,2]
[363269475,1748656048475,-500.0,0.00019178,2]
[363269476,1748656048496,-500.0,0.00019178,2]
[363269477,1748656048522,-500.0,0.00019178,2]
[363269478,1748656048545,-500.0,0.00019178,2]
[363269479,1748656048568,-500.0,0.00019178,2]
[363269480,1748656048591,-500.0,0.00019178,2]
[363269481,1748656048614,-500.0,0.00019178,2]
[363269482,1748656048636,-500.0,0.00019178,2]
[363269483,1748656048657,-500.0,0.00019178,2]
[363269484,1748656048680,-500.0,0.00019178,2]
[363269485,1748656048703,-500.0,0.00019178,2]
[363269486,1748656048725,-500.0,0.00019178,2]
[363269487,1748656048748,-500.0,0.00019178,2]
[363269488,1748656048774,-500.0,0.00019178,2]
[363269489,1748656048795,-500.0,0.00019178,2]
[363269490,1748656048815,-500.0,0.00019178,2]
[363269491,1748656048837,-500.0,0.00019178,2]
[363269492,1748656048857,-500.0,0.00019178,2]
[363269493,1748656048880,-500.0,0.00019178,2]
[363269494,1748656048902,-500.0,0.00019178,2]
[363269495,1748656048923,-500.0,0.00019178,2]
[363269496,1748656048945,-500.0,0.00019178,2]
[363269497,1748656048971,-500.0,0.00019178,2]
[363269498,1748656048993,-500.0,0.00019178,2]
[363269499,1748656049018,-500.0,0.00019178,2]
[363269500,1748656049040,-500.0,0.00019178,2]
[363269501,1748656049062,-500.0,0.00019178,2]
[363269502,1748656049084,-500.0,0.00019178,2]
[363269503,1748656049251,-500.0,0.00019178,2]
[363269504,1748656049277,-500.0,0.00019178,2]
[363269505,1748656049300,-500.0,0.00019178,2]
[363269506,1748656049324,-500.0,0.00019178,2]
[363269507,1748656049348,-500.0,0.00019178,2]
[363269508,1748656049371,-500.0,0.00019178,2]
[363269509,1748656049395,-500.0,0.00019178,2]
[363269510,1748656049419,-500.0,0.00019178,2]
[363269511,1748656049442,-500.0,0.00019178,2]
[363269512,1748656049464,-500.0,0.00019178,2]
[363269513,1748656049488,-500.0,0.00019178,2]
[363269514,1748656049510,-500.0,0.00019178,2]
[363269515,1748656049536,-500.0,0.00019178,2]
[363269516,1748656049559,-500.0,0.00019178,2]
[363269517,1748656049582,-500.0,0.00019178,2]
[363269518,1748656049604,-500.0,0.00019178,2]
[363269519,1748656049627,-500.0,0.00019178,2]
[363269520,1748656049650,-500.0,0.00019178,2]
[363269521,1748656049673,-500.0,0.00019178,2]
[363269522,1748656049695,-500.0,0.00019178,2]
[363269523,1748656049717,-500.0,0.00019178,2]
[363269524,1748656049739,-500.0,0.00019178,2]
[363269525,1748656049761,-500.0,0.00019178,2]
[363269526,1748656049785,-500.0,0.00019178,2]
[363269527,1748656049807,-500.0,0.00019178,2]
[363269528,1748656049830,-500.0,0.00019178,2]
[363269529,1748656049854,-500.0,0.00019178,2]
[363269530,1748656049884,-500.0,0.00019178,2]
[363269531,1748656049909,-500.0,0.00019178,2]
[363269532,1748656049932,-500.0,0.00019178,2]
[363269533,1748656049958,-500.0,0.00019178,2]
[363269534,1748656049981,-500.0,0.00019178,2]
[363269535,1748656050005,-500.0,0.00019178,2]
[363269536,1748656050032,-500.0,0.00019178,2]
[363269537,1748656050055,-600.0,0.00019178,2]
[363269538,1748656050078,-500.0,0.00019178,2]
[363269539,1748656050101,-500.0,0.00019178,2]
[363269540,1748656050125,-807.65813001,0.00019178,2]
[363269541,1748656050149,-807.65813001,0.00019178,2]
[363269542,1748656050172,-807.65813001,0.00019178,2]
[363269543,1748656050195,-807.65813001,0.00019178,2]
[363269544,1748656050218,-807.65813001,0.00019178,2]
[363269545,1748656050240,-807.65813001,0.00019178,2]
[363269546,1748656050263,-807.65813001,0.00019178,2]
[363269547,1748656050287,-807.65813001,0.00019178,2]
[363269548,1748656050309,-807.65813001,0.00019178,2]
[363269549,1748656050332,-807.65813001,0.00019178,2]
[363269550,1748656050354,-807.65813001,0.00019178,2]
[363269551,1748656050377,-807.65813001,0.00019178,2]
[363269552,1748656050400,-807.65813001,0.00019178,2]
[363269553,1748656050422,-807.65813001,0.00019178,2]
[363269554,1748656050444,-807.65813001,0.00019178,2]
[363269555,1748656050466,-807.65813001,0.00019178,2]
[363269556,1748656050488,-807.65813001,0.00019178,2]
[363269557,1748656050511,-807.65813001,0.00019178,2]
[363269558,1748656050535,-807.65813001,0.00019178,2]
[363269559,1748656050557,-807.65813001,0.00019178,2]
[363269560,1748656050579,-807.65813001,0.00019178,2]
[363269561,1748656050601,-807.65813001,0.00019178,2]
[363269562,1748656050623,-807.65813001,0.00019178,2]
[363269563,1748656050644,-807.65813001,0.00019178,2]
[363269564,1748656050667,-807.65813001,0.00019178,2]
[363269565,1748656050689,-807.65813001,0.00019178,2]
[363269566,1748656050711,-807.65813001,0.00019178,2]
[363269567,1748656050733,-807.65813001,0.00019178,2]
[363269568,1748656050754,-807.65813001,0.00019178,2]
[363269569,1748656050779,-807.65813001,0.00019178,2]
[363269570,1748656050801,-1744.19,0.00019178,2]
[363269571,1748656050822,-1425.95,0.00019178,2]
[363269572,1748656050844,-300.0,0.00019178,2]
[363269573,1748656050867,-807.65813,0.00019178,2]
[363269574,1748656050892,-807.65813,0.00019178,2]
[363269575,1748656050914,-807.65813,0.00019178,2]
[363269576,1748656050936,-529.54,0.00019178,2]
[363269577,1748656050959,-612.2,0.00019178,2]
[363269578,1748656050983,-151.0,0.00019178,2]
[363269579,1748656051004,-616.482552,0.00019178,2]
[363269580,1748656051028,-304.0,0.000192,2]
[363269581,1748656051051,-151.0,0.000192,2]
[363269582,1748656051072,-2452.12,0.000192,2]
[363269583,1748656051095,-156.587,0.00019233,2]
[363269584,1748656051117,-2200.0,0.00019242,2]
[363269585,1748656051138,-1355.49097074,0.00019247,22]
[363269586,1748656051161,-162.380719,0.00019288,2]
[363269587,1748656051182,-776.59145559,0.00019305,2]
[363269588,1748656051209,-160.0,0.00019328,2]
[363269589,1748656051230,-151.0,0.00019329,2]
[363269590,1748656051252,-152.089388,0.00019329,2]
[363269591,1748656051280,-151.0,0.00019329,2]
[363269592,1748656051304,-151.0,0.00019329,2]
[363269593,1748656051326,-162.637626,0.00019329,2]
[363269594,1748656051348,-151.0,0.00019329,2]
[363269595,1748656051371,-151.0,0.00019329,2]
[363269596,1748656051393,-151.0,0.00019329,2]
[363269597,1748656051414,-261.859116,0.00019329,2]
[363269598,1748656051436,-176.019814,0.00019329,2]
[363269599,1748656051459,-176.019814,0.00019329,2]
[363269600,1748656051480,-453.309988,0.00019329,2]
[363269601,1748656051502,-453.309988,0.00019329,2]
[363269602,1748656051528,-531.785592,0.00019329,2]
[363269603,1748656051551,-531.785592,0.00019329,2]
[363269604,1748656051575,-1161.758364,0.00019329,2]
[363269605,1748656051598,-1161.758364,0.00019329,2]
[363269606,1748656051620,-151.0,0.00019329,2]
[363269607,1748656051641,-171.197507,0.00019329,2]
[363269608,1748656051664,-575.979099,0.00019329,2]
[363269609,1748656051686,-575.979099,0.00019329,2]
[363269610,1748656051708,-151.0,0.00019329,2]
[363269611,1748656051728,-151.0,0.00019329,2]
[363269612,1748656051749,-151.37414,0.00019329,2]
[363269613,1748656051773,-1256.43873,0.00019329,2]
[363269614,1748656051795,-1256.43873,0.00019329,2]
[363269615,1748656051817,-2802.639793,0.00019329,2]
[363269616,1748656051838,-2802.639793,0.00019329,2]
[363269617,1748656051859,-152.339554,0.00019329,2]
[363269618,1748656051884,-151.0,0.00019329,2]
[363269619,1748656051907,-151.0,0.00019329,2]
[363269620,1748656051928,-151.0,0.00019329,2]
[363269621,1748656051951,-151.0,0.00019329,2]
[363269622,1748656051973,-100000.0,0.00019329,2]
[363269623,1748656051996,-168.3888056,0.00019343,2]
[363269624,1748656052028,-4235.81178689,0.00019348,2]
[363269625,1748656052051,-215.0738,0.00019354,2]
[363269626,1748656052075,-5000.0,0.00019364,2]
[363269627,1748656052096,-1355.49097074,0.00019384,24]
[363269628,1748656052119,-174.61919141,0.00019398,2]
[363269629,1748656052140,-500.0,0.00019407,2]
[363269630,1748656052163,-430.0,0.0001945,2]
[363269631,1748656052185,-310.4136684,0.0001945,2]
[363269632,1748656052210,-1627.51,0.0001945,2]
[363269633,1748656052237,-430.0,0.0001945,2]
[363269634,1748656052259,-430.0,0.0001945,2]
[363269635,1748656052286,-430.0,0.0001945,2]
[363269636,1748656052456,-608.15,0.0001945,2]
[363269637,1748656052480,-971.71,0.0001945,2]
[363269638,1748656052503,-432.24,0.0001945,2]
[363269639,1748656052531,-982.9,0.0001945,2]
[363269640,1748656052554,-430.0,0.0001945,2]
[363269641,1748656052577,-430.0,0.0001945,2]
[363269642,1748656052598,-151.0,0.00019452,2]
[363269643,1748656052619,-538.945644,0.00019452,2]
[363269644,1748656052639,-538.945644,0.00019452,2]
[363269645,1748656052660,-151.0,0.00019452,2]
[363269646,1748656052681,-2748.309826,0.00019452,2]
[363269647,1748656052702,-2748.309826,0.00019452,2]
[363269648,1748656052723,-217.302792,0.00019452,2]
[363269649,1748656052744,-217.302792,0.00019452,2]
[363269650,1748656052769,-797.659667,0.00019452,2]
[363269651,1748656052790,-797.659667,0.00019452,2]
[363269652,1748656052811,-151.0,0.00019452,2]
[363269653,1748656052835,-842.82,0.00019452,2]
[363269654,1748656052857,-430.0,0.00019452,2]
[363269655,1748656052885,-2189.94,0.00019452,2]
[363269656,1748656052909,-430.0,0.00019452,2]
[363269657,1748656052935,-1149.04,0.00019452,2]
[363269658,1748656052960,-644.15,0.00019452,2]
[363269659,1748656052985,-430.0,0.00019452,2]
[363269660,1748656053010,-963.09,0.00019452,2]
[363269661,1748656053041,-1513.41,0.00019452,2]
[363269662,1748656053066,-1857.4,0.00019452,2]
[363269663,1748656053092,-595.82,0.00019452,2]
[363269664,1748656053117,-716.67,0.00019452,2]
[363269665,1748656053141,-430.0,0.00019452,2]
[363269666,1748656053166,-430.0,0.00019452,2]
[363269667,1748656053191,-1076.82,0.00019452,2]
[363269668,1748656053215,-960.05,0.00019452,2]